[Event "Fagernes GM Open Autumn 2024"]
[Site "Fagernes"]
[Date "2024.10.07"]
[Round "2.29"]
[White "Kanyamarala, Trisha"]
[Black "Simonsen, David Mindestrommen"]
[Result "1/2-1/2"]
[ECO "D91"]
[WhiteElo "2160"]
[BlackElo "1930"]
[Annotator "RC"]
[PlyCount "114"]
[EventDate "2024.10.03"]
[EventType "swiss"]
[EventCountry "NOR"]
[SourceTitle "playchess.com"]
[Source "ChessBase"]
[SourceQuality "1"]
[TimeControl "40/6000:2400+30"]

1. d4 {[%emt 0:00:37]} Nf6 {[%emt 0:00:00]} 2. c4 {[%emt 0:00:00]} g6 {[%emt 0:00:00]} 3. Nc3 {[%emt 0:00:00]} d5 {[%emt 0:00:00]} 4. Nf3 {[%emt 0:00:00]} Bg7 {[%emt 0:00:00]} 5. Bg5 {[%emt 0:00:00]} Ne4 {[%emt 0:00:00]} 6. Bf4 {[%emt 0:00:00]} Nxc3 {[%emt 0:00:00]} 7. bxc3 {[%emt 0:00:00]} dxc4 {[%emt 0:01:43]} 8. e3 {[%emt 0:00:00]} Be6 {[%emt 0:00:02]} 9. Qb1 {[%emt 0:00:00]} Qd5 {[%emt 0:06:57]} 10. Bxc7 {[%emt 0:10:35]} Nd7 {[%emt 0:14:18]} 11. e4 {[%emt 0:03:56]} Qc6 {[%emt 0:01:42]} 12. Bf4 {[%emt 0:04:11]} Nf6 {[%emt 0:03:20]} 13. Nd2 {[%emt 0:19:34]} b5 {[%emt 0:01:41]} 14. Be5 {[%emt 0:06:58]} Rd8 {[%emt 0:07:01]} 15. Be2 {[%emt 0:07:37]} Bh6 {[%emt 0:01:51]} 16. f4 {[%emt 0:05:05]} O-O {[%emt 0:00:30]} 17. O-O {[%emt 0:05:44]} Bg4 {[%emt 0:02:56]} 18. d5 {[%emt 0:06:59]} Qe8 {[%emt 0:02:29]} 19. Nf3 {[%emt 0:07:56]} Nd7 {[%emt 0:06:20]} 20. Bd4 {[%emt 0:00:00]} Bxf4 {[%emt 0:00:10]} 21. Qxb5 {[%emt 0:00:24]} Nf6 {[%emt 0:12:15]} 22. Qxc4 {[%emt 0:05:59]} Nxe4 {[%emt 0:00:38]} 23. Bxa7 {[%emt 0:07:00]} Bf5 {[%emt 0:09:07]} 24. Nh4 {[%emt 0:03:45]} Rc8 {[%emt 0:00:11]} 25. Qa6 {[%emt 0:06:08]} Bd6 {[%emt 0:04:17]} 26. Nxf5 {[%emt 0:00:00]} gxf5 {[%emt 0:00:00]} 27. Rxf5 {[%emt 0:00:00]} Qd7 {[%emt 0:00:24]} 28. Bg4 {[%emt 0:00:00]} Qc7 {[%emt 0:00:06]} 29. Bf2 {[%emt 0:00:00]} Bxh2+ {[%emt 0:07:41]} 30. Kh1 {[%emt 0:00:00]} Be5 {[%emt 0:06:16]} 31. Qd3 {[%emt 0:00:00]} Qxc3 {[%emt 0:00:44]} 32. Qxc3 {[%emt 0:00:00]} Rxc3 {[%emt 0:00:16]} 33. Be1 {[%emt 0:00:00]} Ng3+ {[%emt 0:00:59]} 34. Bxg3 {[%emt 0:00:00]} Bxg3 {[%emt 0:00:00]} 35. Rf3 {[%emt 0:00:00]} Be5 {[%emt 0:02:02]} 36. Rxc3 {[%emt 0:00:00]} Bxc3 {[%emt 0:00:00]} 37. Rc1 {[%emt 0:00:00]} Be5 {[%emt 0:00:00]} 38. a4 {[%emt 0:00:00]} Rd8 {[%emt 0:00:15]} 39. Bf3 {[%emt 0:00:00]} Bf4 {[%emt 0:00:49]} 40. Ra1 {[%emt 0:00:00]} Rc8 {[%emt 0:00:04]} 41. Kg1 {[%emt 0:07:18]} Rc1+ {[%emt 0:00:58]} 42. Rxc1 {[%emt 0:00:07]} Bxc1 {[%emt 0:00:04]} 43. Kf2 {[%emt 0:01:43]} Kf8 {[%emt 0:00:57]} 44. Ke2 {[%emt 0:01:14]} Ke8 {[%emt 0:00:52]} 45. Bh5 {[%emt 0:00:39]} Kd7 {[%emt 0:01:25]} 46. Bxf7 {[%emt 0:06:50]} Kc7 {[%emt 0:01:13]} 47. Kd3 {[%emt 0:01:15]} Kb6 {[%emt 0:00:14]} 48. Ke4 {[%emt 0:00:31]} h6 {[%emt 0:00:34]} 49. Kf5 {[%emt 0:00:16]} Ka5 {[%emt 0:00:16]} 50. Be8 {[%emt 0:00:08]} Bg5 {[%emt 0:00:08]} 51. Ke6 {[%emt 0:00:11]} Kb6 {[%emt 0:00:20]} 52. Kd7 {[%emt 0:00:38]} Ka5 {[%emt 0:00:25]} 53. Kc7 {[%emt 0:00:29]} Bf4+ {[%emt 0:00:19]} 54. Kb7 {[%emt 0:00:21]} Be3 {[%emt 0:00:16]} 55. g4 {[%emt 0:00:14]} Bf4 {[%emt 0:00:13]} 56. Bb5 {[%emt 0:00:15]} Bg5 {[%emt 0:00:10]} 57. Kc6 {[%emt 0:00:25]} Bh4 {[%emt 0:00:13]} 1/2-1/2

[Event "Fagernes GM Open Autumn 2024"]
[Site "Fagernes"]
[Date "2024.10.07"]
[Round "2.30"]
[White "Gaikwad, Siddhant"]
[Black "Lien, Sebastian"]
[Result "1-0"]
[ECO "C43"]
[WhiteElo "2039"]
[BlackElo "1911"]
[Annotator "RC"]
[PlyCount "46"]
[EventDate "2024.10.03"]
[EventType "swiss"]
[EventCountry "NOR"]
[SourceTitle "playchess.com"]
[Source "ChessBase"]
[SourceQuality "1"]
[TimeControl "40/6000:2400+30"]

1. e4 {[%emt 0:00:19]} e5 {[%emt 0:00:00]} 2. Nf3 {[%emt 0:00:08]} Nf6 {[%emt 0:00:00]} 3. d4 {[%emt 0:00:00]} Nxe4 {[%emt 0:00:00]} 4. Bd3 {[%emt 0:00:00]} d5 {[%emt 0:00:00]} 5. Nxe5 {[%emt 0:00:00]} Nd7 {[%emt 0:00:00]} 6. O-O {[%emt 0:04:26]} Bd6 {[%emt 0:08:09]} 7. Bxe4 {[%emt 0:17:46]} dxe4 {[%emt 0:00:00]} 8. f4 {[%emt 0:00:58]} exf3 {[%emt 0:00:00]} 9. Nxf3 {[%emt 0:01:13]} O-O {[%emt 0:03:46]} 10. Nc3 {[%emt 0:00:00]} Nb6 {[%emt 0:08:28]} 11. Qd3 {[%emt 0:06:10]} h6 {[%emt 0:02:00]} 12. b3 {[%emt 0:11:35]} Bg4 {[%emt 0:01:12]} 13. Nb5 {[%emt 0:06:39]} c5 {[%emt 0:08:31]} 14. Nxd6 {[%emt 0:03:40]} Qxd6 {[%emt 0:00:15]} 15. Ba3 {[%emt 0:00:42]} Rac8 {[%emt 0:23:29]} 16. Bxc5 {[%emt 0:04:13]} Rxc5 {[%emt 0:00:16]} 17. dxc5 {[%emt 0:00:00]} Qxc5+ {[%emt 0:00:00]} 18. Qd4 {[%emt 0:00:19]} Qc8 {[%emt 0:00:26]} 19. c4 {[%emt 0:00:16]} Rd8 {[%emt 0:00:04]} 20. Qf4 {[%emt 0:00:05]} Be6 {[%emt 0:01:18]} 21. Rad1 {[%emt 0:00:53]} Re8 {[%emt 0:00:09]} 22. Nd4 {[%emt 0:01:03]} a5 {[%emt 0:03:10]} 23. Nxe6 {[%emt 0:00:08]} Qxe6 {[%emt 0:00:00]} 1-0

[Event "Fagernes GM Open Autumn 2024"]
[Site "Fagernes"]
[Date "2024.10.08"]
[Round "3.1"]
[White "Kvaloy, Aksel Bu"]
[Black "Urkedal, Frode Olav Olsen"]
[Result "1/2-1/2"]
[ECO "E11"]
[WhiteElo "2484"]
[BlackElo "2559"]
[Annotator "TA"]
[PlyCount "88"]
[EventDate "2024.10.03"]
[EventType "swiss"]
[EventCountry "NOR"]
[SourceTitle "playchess.com"]
[Source "ChessBase"]
[SourceQuality "1"]
[TimeControl "40/6000:2400+30"]

{[%evp 16,88,12,1,1,-1,20,25,18,23,60,27,29,34,37,32,27,13,20,17,8,14,11,13,13,0,0,0,0,8,8,0,0,0,0,0,0,0,0,-48,-50,-46,-41,-43,-33,-54,14,10,10,11,8,13,14,12,8,12,13,8,9,13,15,0,0,-8,-8,-10,-10,-10,0,0,0,0,0,-7,-8]} 1. d4 {[%emt 0:00:00]} Nf6 {[%emt 0:00:00]} 2. c4 {[%emt 0:00:00]} e6 {[%emt 0:00:00]} 3. g3 {[%emt 0:00:00]} d5 {[%emt 0:00:00]} 4. Bg2 {[%emt 0:00:00]} Bb4+ {[%emt 0:00:00]} 5. Bd2 {[%emt 0:00:00]} Be7 {[%emt 0:00:00]} 6. Nf3 {[%emt 0:00:00]} c6 {[%emt 0:00:00]} 7. Qc2 {[%emt 0:00:00]} Nbd7 {[%emt 0:00:00]} 8. O-O {[%emt 0:00:00]} O-O {[%emt 0:00:00]} 9. Bf4 {[%emt 0:00:00]} b6 {[%emt 0:00:00]} 10. Nc3 {[%emt 0:00:00]} Ba6 {[%emt 0:00:17]} 11. cxd5 {[%emt 0:00:00]} cxd5 {[%emt 0:00:00] White has an edge.} 12. Rfc1 {[%emt 0:00:00]} Qe8 {[%emt 0:04:14]} 13. Bf1 {[%emt 0:01:35]} h6 {[%emt 0:07:32]} 14. Qa4 {[%emt 0:17:08]} Nb8 {[%emt 0:00:00][%cal Bd7b8,Bb8c6,Bc6a5][%mdl 32]} 15. Qxe8 {[%emt 0:00:34]} Rxe8 {[%emt 0:03:57]} 16. a4 {[%emt 0:01:46]} Nc6 {[%emt 0:05:01]} 17. Nb5 {[%emt 0:02:36]} Bxb5 {[%emt 0:00:00]} 18. axb5 {[%emt 0:00:00]} Na5 {[%emt 0:00:00]} 19. Ra4 {[%emt 0:05:03]} Ne4 {[%emt 0:06:22]} 20. b4 {[%emt 0:16:36]} Nc4 {[%emt 0:00:41]} 21. Ne5 {[%emt 0:03:10]} Nxe5 {[%emt 0:08:50]} (21... g5 22. Nxc4 gxf4 23. Ne5 $14) 22. Bxe5 {[%emt 0:08:06]} f6 {[%emt 0:10:45][%cal Bf7f6,Bf6f5][%mdl 32]} 23. Bc7 {[%emt 0:01:31]} Rec8 {[%emt 0:08:02]} 24. Rc6 {[%emt 0:01:46][%cal Of1h3] Inhibits Bd6.} Kf7 {[%emt 0:00:00][%cal Oe7d6]} 25. f3 {[%emt 0:01:55]} Nd2 {[%emt 0:00:00]} 26. Bh3 {[%emt 0:04:49]} f5 {[%emt 0:00:00]} 27. Bf4 {[%emt 0:03:56]} (27. g4 $11 {feels stronger.} g6 28. Kf2) 27... Rxc6 $1 $15 {[%emt 0:13:41]} 28. bxc6 {[%emt 0:00:00][%cal Bb5c6,Bc6c7][%mdl 32]} b5 {[%emt 0:00:00]} 29. Ra6 {[%emt 0:06:53]} Bxb4 {[%emt 0:03:48]} 30. g4 {[%emt 0:10:04]} g6 {[%emt 0:05:17]} (30... Bc3 $15 31. Kh1 (31. gxf5 Bxd4+ 32. Kg2 Nc4 $17) 31... Nc4 32. gxf5 Bxd4 33. fxe6+ Ke7) 31. gxf5 $11 {[%emt 0:00:52] The position is equal.} gxf5 {[%emt 0:00:00]} 32. c7 {[%emt 0:00:43][%cal Oa6a7] [#] Threatens to win with Rxa7!} (32. Bxh6 Bc3 33. Bxd2 Bxd2) 32... Rc8 {[%emt 0:01:42]} 33. Kf2 {[%emt 0:01:57]} (33. Rxa7 Nc4 $15) 33... Nc4 {[%emt 0:00:17]} 34. e4 {[%emt 0:00:24] And now exd5 would win.} ({Reject} 34. Rxa7 Bd6 35. Kg3 (35. Bxh6 $2 b4 $19) 35... b4 $17) 34... Bc3 $1 {[%emt 0:00:20] [#]} 35. Rxe6 $1 {[%emt 0:03:18]} Bxd4+ {[%emt 0:00:00]} (35... Rxc7 {simplifies} 36. Bxf5 Re7 37. Rxh6 Bxd4+ 38. Ke2 Bf6) 36. Ke2 {[%emt 0:00:00]} Rxc7 {[%emt 0:02:35]} (36... Kxe6 $2 {too greedy.} 37. Bxf5+ (37. exf5+ $2 Kf6 $19) 37... Kf6 38. Bxc8 $18) 37. Bxf5 {[%emt 0:00:00] This pair of bishops is nice.} Re7 {[%emt 0:04:38]} 38. exd5 {[%emt 0:00:59] Black must now prevent Bg6+.} Rxe6+ {[%emt 0:00:00]} 39. dxe6+ {[%emt 0:01:47][%mdl 4096] Endgame. KBB-KBN} Kf6 {[%emt 0:00:00]} 40. Be4 {[%emt 0:01:39]} Kxe6 {[%emt 0:05:51]} 41. Bxh6 {[%emt 0:07:45]} a5 {[%emt 0:00:36]} 42. Bc6 {[%emt 0:12:18]} Nd6 {[%emt 0:04:55]} 43. Bf8 {[%emt 0:02:26]} b4 {[%emt 0:00:05]} 44. Bxd6 {[%emt 0:00:16]} Kxd6 {[%emt 0:00:06] Weighted Error Value: White=0.05 (flawless) /Black=0.05 (flawless) .  Mistake:       	White=1     	Black=1      Inaccurate:     	White=1     	Black=1      OK:         	White=15    	Black=18     Best:        	White=1     	Black=3      Strong:       	---       	Black=2} 1/2-1/2

[Event "Fagernes GM Open Autumn 2024"]
[Site "Fagernes"]
[Date "2024.10.08"]
[Round "3.2"]
[White "Wallace, John Paul"]
[Black "Raja Rithvik R"]
[Result "0-1"]
[ECO "D35"]
[WhiteElo "2373"]
[BlackElo "2514"]
[Annotator "TA"]
[PlyCount "80"]
[EventDate "2024.10.03"]
[EventType "swiss"]
[EventCountry "NOR"]
[SourceTitle "playchess.com"]
[Source "ChessBase"]
[SourceQuality "1"]
[TimeControl "40/6000:2400+30"]

{[%evp 11,80,28,29,10,29,23,20,16,20,18,14,12,62,21,34,28,45,18,31,35,34,0,6,6,7,6,0,0,0,0,13,22,29,44,207,208,272,0,44,0,281,267,270,307,285,0,0,-143,-143,-375,-378,-332,-324,-491,-453,-8658,-5827,-29977,-5212,-8070,-1647,-1637,-881,-6429,-1601,-5189,-6510,-29970,-29969,-29959,-4594]} 1. c4 {[%emt 0:00:00]} e6 {[%emt 0:00:52]} 2. Nc3 {[%emt 0:00:00]} d5 {[%emt 0:00:00]} 3. d4 {[%emt 0:00:00]} Nf6 {[%emt 0:00:02]} 4. cxd5 {[%emt 0:00:00]} exd5 {[%emt 0:00:00]} 5. Bg5 {[%emt 0:00:00]} Bb4 {[%emt 0:00:00]} 6. e3 {[%emt 0:09:15]} h6 {[%emt 0:00:10]} 7. Bf4 {[%emt 0:00:16]} Bf5 {[%emt 0:00:00]} 8. Nge2 {[%emt 0:05:16]} O-O {[%emt 0:00:00]} 9. Ng3 {[%emt 0:02:13] The position is equal.} Bh7 {[%emt 0:00:00]} 10. Bd3 {[%emt 0:00:39]} Bxd3 {[%emt 0:00:00]} 11. Qxd3 {[%emt 0:00:00]} Bd6 {[%emt 0:00:35]} (11... Re8 $11) 12. Bxd6 {[%emt 0:04:06]} Qxd6 {[%emt 0:00:00]} 13. O-O {[%emt 0:00:52]} Re8 {[%emt 0:09:03]} 14. Rac1 {[%emt 0:07:54]} c6 {[%emt 0:04:32] Prevents Nb5.} 15. f3 {[%emt 0:05:38]} Nbd7 {[%emt 0:03:53]} 16. e4 {[%emt 0:23:29]} dxe4 {[%emt 0:19:51]} 17. fxe4 {[%emt 0:00:00] Hoping for Nf5.} Nc5 $1 {[%emt 0:18:11]} 18. Qc4 {[%emt 0:11:56]} Ncxe4 {[%emt 0:00:00]} 19. Ncxe4 {[%emt 0:00:00]} Nxe4 {[%emt 0:00:00]} 20. Qxf7+ {[%emt 0:00:00]} Kh8 {[%emt 0:00:00]} 21. Nf5 {[%emt 0:00:08]} (21. Qxb7 $2 Qxd4+ 22. Kh1 Nf2+ 23. Rxf2 Qxf2 $19) 21... Qf6 {[%emt 0:00:00]} 22. Qxb7 {[%emt 0:00:29]} Nd2 $2 {[%emt 0:11:20]} (22... Rab8 $14 23. Qd7 (23. Qxa7 Rxb2 24. Qd7 Rf8 $11) (23. Qxc6 Qxc6 24. Rxc6 Rxb2 $14) 23... Red8) 23. Rf2 $18 {[%emt 0:12:31]} Ne4 {[%emt 0:00:08]} 24. Rff1 {[%emt 0:00:00]} (24. Rxc6 $18 Qf8 25. Rf4) 24... Nd2 $1 $14 {[%emt 0:00:00] Strongly threatening ...Reb8.} 25. Rf2 $2 {[%emt 0:00:00]} (25. Rxc6 $14 Qf8 26. Rc7 (26. Rf4 Re1+ 27. Kf2 Rae8 $11)) 25... Ne4 $1 $18 {[%emt 0:00:00]} 26. Rxc6 {[%emt 0:03:32]} Rab8 {[%emt 0:07:04]} 27. Qxa7 {[%emt 0:01:31]} Qf8 {[%emt 0:00:47]} 28. Rf4 {[%emt 0:02:05]} (28. Rf1 $18 Ra8 29. Qb6) 28... Rxb2 $40 {[%emt 0:00:00][%mdl 128] White needs to defend precisely.} 29. h3 {[%emt 0:00:11]} (29. Rb6 $11 Rc2 30. Rf1) 29... Ng3 $17 {[%emt 0:00:37] Some like it hot} 30. Nxg3 {[%emt 0:03:48] [#]} (30. Kh2 $17 {was the only defense.} Nxf5 31. Rg6) 30... Re1+ $1 $19 {[%emt 0:04:13]} (30... Qxf4 31. Qxg7+ Kxg7 32. Nh5+ Kh7 33. Nxf4 $19) 31. Kh2 {[%emt 0:00:00]} Qxf4 {[%emt 0:00:00]} 32. Rc8+ {[%emt 0:00:51]} (32. Qa5 {is a better defense.} Ree2 33. Qd5 Rxg2+ (33... Rxa2 $2 {is the wrong capture.} 34. Rc8+ Kh7 35. Qg8+ Kg6 36. Rc6+ $18) 34. Qxg2 Rxg2+ 35. Kxg2 Qd2+ (35... Qxd4 $2 36. Rc8+ Kh7 37. Rc2 $19) 36. Kf1) 32... Kh7 {[%emt 0:00:00]} 33. Qa8 {[%emt 0:00:00]} (33. Qa5 $142 Rg1 34. Qd5 Rgxg2+ 35. Qxg2 Rxg2+ 36. Kxg2 Qd2+ (36... Qxd4 $2 37. Rc2 $19) 37. Kf3) 33... Qxd4 {[%emt 0:01:44][%csl Ge1][%cal Rd4g1]} 34. Rh8+ {[%emt 0:00:00]} Kg6 {[%emt 0:00:00][%csl Ge1][%cal Rd4g1]} 35. Rxh6+ {[%emt 0:01:59]} gxh6 {[%emt 0:00:00][%csl Ge1][%cal Rd4g1]} 36. Qg8+ {[%emt 0:00:00]} Qg7 {[%emt 0:00:00]} 37. Qd5 {[%emt 0:00:02]} Qe5 {[%emt 0:04:54]} 38. Qg8+ {[%emt 0:00:10] [#]} Kf6 $1 {[%emt 0:00:00] ( -> ...Rbb1)} 39. Qf8+ {[%emt 0:00:00]} Ke6 {[%emt 0:00:00]} 40. Qe8+ {[%emt 0:00:19]} Kd5 {[%emt 0:00:00] Weighted Error Value: White=0.84/Black=0.12 (very precise) .  Loses game:     	White=1     	Black=1      Missed win:     	White=2     	---        Mistake:       	White=4     	Black=1      Inaccurate:     	White=3     	Black=1      OK:         	White=8     	Black=4      Best:        	White=4     	Black=5      Strong:       	---       	Black=4} 0-1

[Event "Fagernes GM Open Autumn 2024"]
[Site "Fagernes"]
[Date "2024.10.08"]
[Round "3.3"]
[White "Ghasi, Ameet K"]
[Black "Mitusov, Semen"]
[Result "1/2-1/2"]
[ECO "A10"]
[WhiteElo "2503"]
[BlackElo "2486"]
[Annotator "TA"]
[PlyCount "75"]
[EventDate "2024.10.03"]
[EventType "swiss"]
[EventCountry "NOR"]
[SourceTitle "playchess.com"]
[Source "ChessBase"]
[SourceQuality "1"]
[TimeControl "40/6000:2400+30"]

{[%evp 9,75,13,19,3,2,0,22,6,61,19,17,13,14,15,29,14,24,37,58,43,62,74,91,89,93,95,107,63,66,57,58,45,44,31,45,38,45,50,33,35,41,19,12,10,17,10,9,19,13,11,20,15,25,14,30,-12,-14,-20,0,-20,-13,-20,-17,-27,0,-4,0,-19]} 1. c4 {[%emt 0:01:11]} f5 {[%emt 0:01:23]} 2. g3 {[%emt 0:02:16]} Nf6 {[%emt 0:00:00]} 3. Bg2 {[%emt 0:00:31]} g6 {[%emt 0:00:00]} 4. Nc3 {[%emt 0:08:34]} Bg7 {[%emt 0:00:00]} 5. Rb1 {[%emt 0:01:17]} O-O {[%emt 0:03:25]} 6. b4 {[%emt 0:01:37]} e5 {[%emt 0:01:04]} 7. d3 {[%emt 0:00:18]} c6 {[%emt 0:04:27]} 8. b5 {[%emt 0:10:50]} Kh8 {[%emt 0:10:24]} (8... d5 $11) 9. e3 {[%emt 0:06:51]} d5 {[%emt 0:05:29]} 10. bxc6 {[%emt 0:03:19]} bxc6 {[%emt 0:01:13]} 11. cxd5 {[%emt 0:04:44]} cxd5 {[%emt 0:00:01]} 12. Nge2 {[%emt 0:02:15]} Nc6 {[%emt 0:06:56]} 13. O-O {[%emt 0:04:58]} Be6 {[%emt 0:03:37]} 14. Ba3 {[%emt 0:01:09]} Rf7 {[%emt 0:05:27]} 15. Qa4 {[%emt 0:00:00]} Rc8 {[%emt 0:03:49]} 16. Nb5 {[%emt 0:07:00]} Bf8 {[%emt 0:19:22] Dodges Nd6} 17. Bxf8 {[%emt 0:06:32]} Qxf8 {[%emt 0:04:03]} 18. Qa6 {[%emt 0:00:55] Prevents Rb7.} Bd7 {[%emt 0:02:50]} 19. Rfc1 {[%emt 0:02:00][%cal Od3d4] White is much more active.} (19. Nxa7 $2 Ra8 $19) 19... Kg7 {[%emt 0:12:58]} 20. a3 {[%emt 0:09:58][%cal Od3d4]} (20. Nxa7 Ra8 21. Rxc6 (21. Rb7 Be8 $17) 21... Bxc6 22. Qxc6 Raxa7 $17) 20... e4 {[%emt 0:03:04]} 21. d4 {[%emt 0:02:14][%cal Og2f1]} ({Of course not} 21. Nxa7 Ra8 22. Rxc6 (22. Rb7 exd3 23. Nf4 d2 $19) 22... Bxc6 23. Qxc6 Raxa7 $17 (23... Rfxa7 24. dxe4 dxe4 25. Qb6 $17)) 21... Nb8 {[%emt 0:00:33]} 22. Rxc8 {[%emt 0:02:34]} (22. Qxa7 $2 {is the wrong capture.} Bxb5 23. Rxc8 Qxc8 $19 (23... Rxa7 $2 {too greedy.} 24. Rxf8 Kxf8 25. Rxb5 $18)) 22... Bxc8 {[%emt 0:00:00]} 23. Qa5 {[%emt 0:00:51]} Nc6 {[%emt 0:01:44]} 24. Qc3 {[%emt 0:05:25]} Bd7 {[%emt 0:00:38] [#] White must now prevent ...a6.} 25. Qc5 {[%emt 0:00:23]} Qxc5 {[%emt 0:01:14]} 26. dxc5 {[%emt 0:00:00]} Rf8 $1 {[%emt 0:00:00]} 27. Nbd4 {[%emt 0:01:41]} Rb8 {[%emt 0:00:00] Against Rb7} 28. Rxb8 {[%emt 0:00:00]} Nxb8 {[%emt 0:00:00]} 29. Nc3 {[%emt 0:00:05]} Bc6 {[%emt 0:00:55]} 30. Bf1 {[%emt 0:02:40] And now Bb5 would win.} Kf7 {[%emt 0:00:38]} 31. Be2 {[%emt 0:06:36]} Ke7 {[%emt 0:00:18]} 32. f4 {[%emt 0:00:27]} exf3 {[%emt 0:00:25]} 33. Bxf3 {[%emt 0:00:00]} Kd7 {[%emt 0:00:00]} 34. Kf2 {[%emt 0:00:00]} Na6 {[%emt 0:00:00]} 35. Nb3 {[%emt 0:00:00]} Nc7 {[%emt 0:00:22]} 36. Nd4 {[%emt 0:00:08]} Na6 {[%emt 0:01:23]} 37. Nb3 {[%emt 0:00:00]} Nc7 {[%emt 0:00:00]} 38. Nd4 {[%emt 0:00:33] Weighted Error Value: White=0.08 (flawless) /Black=0.09 (flawless) .  Mistake:       	---       	Black=1      Inaccurate:     	White=3     	---        OK:         	White=16    	Black=13     Best:        	White=1     	Black=1      Strong:       	---       	Black=1} 1/2-1/2

[Event "Fagernes GM Open Autumn 2024"]
[Site "Fagernes"]
[Date "2024.10.08"]
[Round "3.4"]
[White "Jumabayev, Rinat"]
[Black "Aizenberg, Benny"]
[Result "1-0"]
[ECO "B45"]
[WhiteElo "2577"]
[BlackElo "2423"]
[Annotator "TA"]
[PlyCount "107"]
[EventDate "2024.10.03"]
[EventType "swiss"]
[EventCountry "NOR"]
[SourceTitle "playchess.com"]
[Source "ChessBase"]
[SourceQuality "1"]
[TimeControl "40/6000:2400+30"]

{[%evp 26,107,29,22,32,32,53,55,134,120,130,125,133,123,139,135,136,123,132,117,127,118,123,114,120,54,195,187,216,209,215,205,223,173,189,197,211,0,166,166,186,157,161,157,164,131,136,121,185,185,185,177,177,173,222,230,283,299,342,333,392,406,426,379,596,568,634,613,1574,1475,29980,29977,29988,29989,29990,29980,29993,29994,29994,29995,29995,29996,29996,29997]} 1. e4 {[%emt 0:00:00]} c5 {[%emt 0:00:00]} 2. Nf3 {[%emt 0:00:00]} e6 {[%emt 0:00:00]} 3. d4 {[%emt 0:00:00]} cxd4 {[%emt 0:00:00]} 4. Nxd4 {[%emt 0:00:00]} Nf6 {[%emt 0:00:00]} 5. Nc3 {[%emt 0:00:00]} Nc6 {[%emt 0:00:00]} 6. a3 {[%emt 0:00:00]} Be7 {[%emt 0:00:00]} 7. Be3 {[%emt 0:00:00]} O-O {[%emt 0:00:00]} 8. Qf3 {[%emt 0:12:25]} Ne5 {[%emt 0:14:31]} 9. Qh3 {[%emt 0:30:57]} Neg4 {[%emt 0:13:00]} 10. Be2 {[%emt 0:05:51]} Nxe3 {[%emt 0:05:22]} 11. Qxe3 {[%emt 0:00:00]} d6 {[%emt 0:00:53]} 12. O-O-O {[%emt 0:04:28]} e5 {[%emt 0:11:02]} 13. Nf5 {[%emt 0:02:03]} Bxf5 {[%emt 0:08:02]} 14. exf5 {[%emt 0:00:47]} Rc8 {[%emt 0:00:00]} 15. Kb1 {[%emt 0:04:55]} (15. Qxa7 d5 16. f3 d4 $15) 15... Qa5 {[%emt 0:02:06]} 16. Bf3 {[%emt 0:14:15]} e4 {[%emt 0:11:37]} (16... b5 $14) 17. Nxe4 $16 {[%emt 0:01:25]} (17. Bxe4 $6 Rxc3 18. bxc3 d5 19. Bxd5 Nxd5 20. Rxd5 Qxd5 21. Qxe7 Qxg2 $11) 17... Nxe4 {[%emt 0:01:23]} 18. Bxe4 {[%emt 0:00:45]} Bf6 {[%emt 0:01:36]} 19. Rd5 {[%emt 0:06:10]} b5 {[%emt 0:07:15]} 20. Qb3 {[%emt 0:09:08]} (20. Rxd6 b4 $16) 20... Rb8 {[%emt 0:04:05]} 21. Rhd1 {[%emt 0:00:10]} Rfd8 {[%emt 0:02:07]} 22. Qb4 {[%emt 0:02:06]} Qb6 {[%emt 0:02:38]} 23. Rxd6 {[%emt 0:03:32]} Rxd6 {[%emt 0:01:37]} 24. Rxd6 {[%emt 0:00:00]} (24. Qxd6 $2 Rd8 $19) 24... Qxf2 {[%emt 0:00:39]} 25. Rd7 {[%emt 0:00:16]} (25. Ka2 $16) 25... Rc8 {[%emt 0:00:37]} (25... a5 $1 $14 26. Qd2 (26. Qxa5 $2 Qf1+ 27. Ka2 Qc4+ 28. Kb1 Qxe4 $19) 26... Qf1+ 27. Qc1 Qf2) 26. Ka2 $1 $18 {[%emt 0:00:08]} (26. Qxb5 $2 Qe1+ 27. Ka2 Qxe4 $19) 26... a6 {[%emt 0:03:12]} 27. Qb3 {[%emt 0:00:00]} Rf8 {[%emt 0:00:38]} 28. Qd5 {[%emt 0:00:00]} h6 {[%emt 0:01:02]} 29. Rd6 {[%emt 0:00:00]} Qa7 {[%emt 0:01:55]} 30. Qc6 {[%emt 0:00:00]} Qe7 {[%emt 0:00:03]} 31. Qd5 $2 {[%emt 0:00:00]} (31. Rd7 $18 Qe5 32. c3) 31... a5 $2 {[%emt 0:00:42]} (31... Qa7 $1 $11 {and Black has nothing to worry.}) 32. Rd7 $18 {[%emt 0:00:00]} Qe8 {[%emt 0:00:00]} 33. Bd3 {[%emt 0:00:03]} b4 {[%emt 0:00:15] [#]} 34. a4 $1 {[%emt 0:00:01]} Qe1 {[%emt 0:00:00]} 35. Qb3 {[%emt 0:00:00]} (35. Qxa5 $2 b3+ 36. Kxb3 Qxa5 $19) 35... Qf2 {[%emt 0:00:00]} 36. Be4 {[%emt 0:00:01]} Qf4 {[%emt 0:00:54]} (36... Kh7 $16 37. Rb7 (37. Rxf7 Rxf7 38. Qxf7 Qd4 $11) 37... Qf4) 37. Bd5 $18 {[%emt 0:00:00]} Qxf5 {[%emt 0:00:00]} 38. Bxf7+ {[%emt 0:00:00]} (38. Rxf7 $6 Rxf7 39. Bxf7+ Kf8 $14) 38... Kh8 {[%emt 0:00:00]} 39. Rd5 {[%emt 0:00:00]} Qf2 {[%emt 0:01:21]} (39... Qc8 {keeps fighting.}) 40. Rxa5 $18 {[%emt 0:00:00]} Qxg2 {[%emt 0:00:46]} 41. Bd5 {[%emt 0:07:09]} (41. Qxb4 $2 Rxf7 42. Qc4 Rf8 $17) 41... Qd2 {[%emt 0:04:36]} 42. Rb5 {[%emt 0:02:32]} Be7 {[%emt 0:00:12]} 43. a5 {[%emt 0:02:07]} Qxh2 {[%emt 0:12:25]} 44. a6 {[%emt 0:03:56]} Qg1 {[%emt 0:01:01]} (44... Qc7 $142 45. Qa4 Qa7) 45. Qc4 $18 {[%emt 0:04:28]} b3+ {[%emt 0:09:22]} 46. Kxb3 {[%emt 0:04:05]} Qa1 {[%emt 0:03:46]} 47. Qa4 {[%emt 0:01:11]} Qb1 {[%emt 0:03:37]} 48. a7 {[%emt 0:02:29]} Bf6 {[%emt 0:00:14]} 49. Qa3 {[%emt 0:01:03]} (49. a8=B $2 {is a self mate.} Qxb2+ 50. Kc4 Qc3#) 49... Rc8 {[%emt 0:00:26]} 50. Rc5 {[%emt 0:00:51]} (50. a8=B Rc3+ (50... Rxc2 51. Qf8+ Kh7 52. Qg8+ Kg6 53. Bf7#) 51. Kb4 Rxa3 52. Kxa3 Be5 $19 (52... Qxc2 $2 53. Rb8+ Kh7 54. Be4+ $18)) 50... Rxc5 {[%emt 0:01:21]} 51. a8=Q+ {[%emt 0:00:06]} Kh7 {[%emt 0:00:05]} 52. Bg8+ {[%emt 0:00:19]} Kg6 {[%emt 0:00:06]} 53. Qe8+ {[%emt 0:00:09]} Kf5 {[%emt 0:00:20]} 54. Qxc5+ {[%emt 0:00:09]} 1-0